bitfinex/quotes_ETHUSD_20230102
["timestamp","ask_amount","ask_price","bid_price","bid_amount"]
[1672646181527,8.61000822,1215.6,1215.4,4.0]
[1672646181697,5.0,1215.5,1215.4,4.0]
[1672646181912,5.066,1215.5,1215.4,4.0]
[1672646183335,5.066,1215.5,1215.4,6.26184461]
[1672646183493,5.066,1215.5,1215.4,6.32575007]
[1672646184038,5.066,1215.5,1215.4,4.06390546]
[1672646184254,5.066,1215.5,1215.4,4.0]
[1672646186221,5.066,1215.5,1215.3,18.61844607]
[1672646186451,5.066,1215.5,1215.3,22.76730721]
[1672646187105,5.066,1215.5,1215.4,4.0]
[1672646187627,5.066,1215.5,1215.3,22.76730721]
[1672646187820,5.066,1215.5,1215.3,14.61844607]
[1672646188039,5.6839,1215.5,1215.4,1.76888182]
[1672646188211,5.6839,1215.5,1215.4,5.76888182]
[1672646188423,5.6839,1215.5,1215.4,5.83278728]
[1672646190977,5.6839,1215.5,1215.4,5.83078728]
[1672646191225,5.6839,1215.5,1215.4,5.83278728]
[1672646192473,5.6839,1215.5,1215.4,13.87138121]
[1672646192474,5.066,1215.5,1215.4,13.87138121]
[1672646192906,5.066,1215.5,1215.4,23.50545733]
[1672646193190,5.066,1215.5,1215.4,32.40984115]
[1672646193755,0.066,1215.5,1215.4,32.40984115]
[1672646193916,0.6177,1216.0,1215.4,32.40984115]
[1672646194129,0.6177,1216.0,1215.7,4.0]
[1672646194388,5.0,1215.8,1215.7,8.71136114]
[1672646194710,5.066,1215.8,1215.7,8.7752666]
[1672646195549,5.066,1215.8,1215.7,9.0052666]
[1672646196463,5.066,1215.8,1215.7,9.0032666]
[1672646196644,5.066,1215.8,1215.7,9.0052666]
[1672646198280,5.066,1215.8,1215.7,9.0024897]
[1672646198489,5.016,1215.8,1215.7,9.0024897]
[1672646198706,5.016,1215.8,1215.7,5.0052666]
[1672646198856,5.016,1215.8,1215.7,4.7752666]
[1672646199073,5.016,1215.8,1215.7,4.71136114]
[1672646199276,5.016,1215.8,1215.6,14.00570546]
[1672646199506,5.016,1215.8,1215.6,18.1545666]
[1672646206241,5.016,1215.8,1215.6,14.1545666]
[1672646206701,5.016,1215.8,1215.6,14.1525666]
[1672646206892,5.016,1215.8,1215.6,14.1545666]
[1672646207247,5.016,1215.8,1215.6,15.97002326]
[1672646209245,5.016,1215.8,1215.6,15.9765344]
[1672646209935,5.016,1215.8,1215.7,4.0]
[1672646217210,5.016,1215.8,1215.6,11.82767326]
[1672646219046,5.016,1215.8,1215.7,4.0]
[1672646220031,5.016,1215.8,1215.7,3.9979909]
[1672646221821,5.016,1215.8,1215.7,9.72941846]
[1672646222030,5.016,1215.8,1215.7,9.79332392]
[1672646228937,5.016,1215.8,1215.7,5.79533302]
[1672646229313,5.016,1215.8,1215.7,9.79533302]
[1672646232063,0.066,1215.8,1215.7,9.79533302]
[1672646232250,0.64830822,1216.0,1215.7,9.79533302]
[1672646233104,5.0,1215.8,1215.7,9.79533302]
[1672646233332,5.066,1215.8,1215.7,9.79533302]
[1672646234459,5.066,1215.8,1215.7,10.02533302]
[1672646239018,5.066,1215.8,1215.7,8.4427666]
[1672646239235,5.066,1215.8,1215.7,4.2127666]
[1672646239404,5.066,1215.8,1215.7,8.14886114]
[1672646239615,5.066,1215.8,1215.7,8.2127666]
[1672646243657,5.066,1215.8,1215.7,8.20994758]
[1672646243827,5.066,1215.8,1215.7,10.20731912]
[1672646244444,5.066,1215.8,1215.7,0.06390546]
[1672646244697,6.689,1215.8,1215.4,23.04202007]
[1672646244863,6.689,1215.8,1215.5,3.0]
[1672646245076,6.689,1215.8,1215.5,5.74948812]
[1672646245328,6.689,1215.8,1215.5,5.81339358]
[1672646245659,6.69,1215.8,1215.5,3.06390546]
[1672646245968,6.69,1215.8,1215.5,3.0]
[1672646246580,6.69,1215.8,1215.4,19.45614842]
[1672646246791,7.3078,1215.8,1215.4,19.45614842]
[1672646247233,6.69,1215.8,1215.4,19.45614842]
[1672646248176,6.72060822,1215.8,1215.4,19.45614842]
[1672646248407,8.62660904,1215.8,1215.4,19.45614842]
[1672646248548,8.62660904,1215.8,1215.4,19.46266064]
[1672646251033,5.624,1215.7,1215.4,19.46266064]
[1672646251336,5.0,1215.5,1215.4,19.46266064]
[1672646251549,5.066,1215.5,1215.4,5.98816064]
[1672646251764,7.1936,1215.5,1215.4,1.83278728]
[1672646251929,7.1936,1215.5,1215.4,1.76888182]
[1672646251930,9.4355,1215.5,1215.4,1.76888182]
[1672646252979,9.43169852,1215.5,1215.4,1.76888182]
[1672646254029,1.22169852,1215.5,1215.1,2.34246875]
[1672646254240,1.622,1215.3,1215.1,2.27856329]
[1672646255425,5.681,1215.4,1215.1,2.27856329]
[1672646255601,1.681,1215.4,1215.1,2.27856329]
[1672646255808,1.615,1215.4,1215.1,2.27856329]
[1672646256018,1.615,1215.4,1215.1,4.30742488]
[1672646256350,5.115,1215.4,1215.1,4.30742488]
[1672646256537,5.0,1215.2,1215.1,4.30742488]
[1672646256743,5.066,1215.2,1215.1,4.30742488]
[1672646265005,5.066,1215.2,1215.1,2.27856329]
[1672646269528,6.685,1215.2,1215.1,2.27856329]
[1672646270813,6.677,1215.2,1215.1,2.27856329]
[1672646277943,5.066,1215.2,1215.1,2.27856329]
[1672646278156,5.066,1215.2,1215.1,2.27533285]
[1672646294010,5.066,1215.2,1215.1,4.3748714]
[1672646296049,5.066,1215.2,1215.1,5.09344908]
[1672646296260,5.066,1215.2,1215.1,5.15735454]
[1672646298740,5.066,1215.2,1215.1,3.05781599]
[1672646298902,5.066,1215.2,1215.1,2.99391053]
[1672646302154,5.066,1215.2,1215.1,2.99133343]
[1672646308353,5.066,1215.2,1215.1,6.99133343]
[1672646308568,5.066,1215.2,1215.1,7.05523889]
[1672646308766,5.066,1215.2,1215.1,3.05523889]
[1672646308976,5.066,1215.2,1215.1,2.99133343]
[1672646320729,6.692,1215.2,1215.1,2.99133343]
[1672646322071,1.692,1215.2,1215.1,2.99133343]
[1672646322218,1.626,1215.2,1215.1,2.99133343]
[1672646323121,6.626,1215.2,1215.1,2.99133343]
[1672646323269,6.692,1215.2,1215.1,2.99133343]
[1672646324899,6.692,1215.2,1215.1,2.98825673]
[1672646327742,7.72606082,1215.2,1215.1,2.98825673]
[1672646329212,2.72606082,1215.2,1215.1,2.98825673]
[1672646329424,2.66006082,1215.2,1215.1,2.98825673]
[1672646329948,7.66006082,1215.2,1215.1,2.98825673]
[1672646330171,7.72606082,1215.2,1215.1,2.98825673]
[1672646333731,13.49992196,1215.2,1215.1,2.98825673]
[1672646334739,16.49992196,1215.2,1215.1,2.98825673]
[1672646341410,12.35106082,1215.2,1215.1,2.98825673]
[1672646346438,11.317,1215.2,1215.1,2.98825673]
[1672646348087,9.691,1215.2,1215.1,2.98825673]
[1672646349137,9.691,1215.2,1215.1,2.98466929]
[1672646349594,4.691,1215.2,1215.1,2.98466929]
[1672646349802,4.625,1215.2,1215.1,2.98466929]
[1672646350043,10.45896082,1215.2,1215.1,2.98466929]
[1672646350234,10.52496082,1215.2,1215.1,2.98466929]
[1672646352876,8.89996082,1215.2,1215.1,2.98466929]
[1672646355997,3.89996082,1215.2,1215.1,2.98466929]
[1672646356253,3.83396082,1215.2,1215.1,2.98466929]
[1672646357064,8.83396082,1215.2,1215.1,2.98466929]
[1672646357417,8.89996082,1215.2,1215.1,2.98466929]
[1672646358992,13.04882196,1215.2,1215.1,2.98466929]
[1672646360531,13.04882196,1215.2,1215.1,2.95996724]
[1672646361601,8.066,1215.2,1215.1,2.95996724]
[1672646362880,8.066,1215.2,1215.1,6.95996724]
[1672646363200,8.066,1215.2,1215.1,7.0238727]
[1672646366680,8.066,1215.2,1215.1,3.0238727]
[1672646367028,8.066,1215.2,1215.1,2.95996724]
[1672646368065,8.066,1215.2,1215.1,6.95996724]
[1672646368277,8.066,1215.2,1215.1,3.0238727]
[1672646368603,8.066,1215.2,1215.1,6.95996724]
[1672646368820,8.066,1215.2,1215.1,7.0238727]
[1672646369132,8.066,1215.2,1215.1,3.0238727]
[1672646369457,8.066,1215.2,1215.1,2.95996724]
[1672646370806,8.066,1215.2,1215.1,6.95996724]
[1672646370982,8.066,1215.2,1215.1,7.0238727]
[1672646371805,8.06365405,1215.2,1215.1,7.0238727]
[1672646372052,8.06365405,1215.2,1215.1,3.0238727]
[1672646372246,8.06365405,1215.2,1215.1,2.95996724]
[1672646373089,3.06365405,1215.2,1215.1,6.95996724]
[1672646373328,3.806,1215.2,1215.1,7.0238727]
[1672646373754,3.806,1215.2,1215.1,3.0238727]
[1672646374071,9.4241,1215.2,1215.1,2.95996724]
[1672646374282,9.4901,1215.2,1215.1,2.95996724]
[1672646375308,8.872,1215.2,1215.1,2.95996724]
[1672646378750,29.39192196,1215.2,1215.1,2.95996724]
[1672646378960,41.01002196,1215.2,1215.1,2.95996724]
[1672646380010,41.01002196,1215.2,1215.1,0.71857768]
[1672646382287,30.01002196,1215.2,1215.1,0.71857768]
[1672646382492,41.01002196,1215.2,1215.1,0.71857768]
[1672646390964,35.21892196,1215.2,1215.1,0.71857768]
[1672646394523,35.21892196,1215.2,1215.1,0.71558116]
[1672646394727,40.16192196,1215.2,1215.1,0.71558116]
[1672646394923,41.01002196,1215.2,1215.1,0.71558116]
[1672646399549,33.59892196,1215.2,1215.1,0.71558116]
[1672646399780,8.066,1215.2,1215.1,0.71558116]
[1672646399957,8.066,1215.2,1215.0,4.0]
[1672646400169,4.94414,1215.1,1215.0,4.0]
[1672646402795,4.94414,1215.1,1215.0,7.18175848]
[1672646403160,4.94414,1215.1,1215.0,7.24566394]
[1672646403902,4.94414,1215.1,1215.0,10.40442033]
[1672646404894,4.94614,1215.1,1215.0,10.40242033]
[1672646405104,4.94414,1215.1,1215.0,10.40442033]
[1672646406095,4.94414,1215.1,1215.0,10.32442033]
[1672646407126,4.94414,1215.1,1215.0,7.16566394]
[1672646407916,4.94414,1215.1,1215.0,8.79066394]
[1672646408652,4.94414,1215.1,1215.0,14.56552508]
[1672646409874,4.94414,1215.1,1215.0,10.41666394]
[1672646410279,4.94614,1215.1,1215.0,10.41466394]
[1672646410494,4.94414,1215.1,1215.0,13.89232033]
[1672646411887,4.94414,1215.1,1215.0,10.41666394]
[1672646413122,4.94414,1215.1,1215.0,8.79166394]
[1672646414006,4.97474822,1215.1,1215.0,3.24566394]
[1672646414197,4.97474822,1215.1,1215.0,3.18175848]
[1672646414375,4.97474822,1215.1,1215.0,7.18175848]
[1672646414583,4.94614,1215.1,1215.0,7.24366394]
[1672646414799,4.94414,1215.1,1215.0,7.24566394]
[1672646415241,4.94414,1215.1,1215.0,3.24566394]
[1672646415472,4.94414,1215.1,1215.0,3.18175848]
[1672646415675,4.94414,1215.1,1215.0,7.18175848]
[1672646415921,4.94414,1215.1,1215.0,7.24566394]
[1672646417400,4.94414,1215.1,1215.0,10.56672033]
[1672646418975,4.94414,1215.1,1215.0,7.24566394]
[1672646419159,4.94614,1215.1,1215.0,7.24366394]
[1672646419389,4.94414,1215.1,1215.0,7.24566394]
[1672646420975,4.94414,1215.1,1215.0,8.86866394]
[1672646421141,4.94414,1215.1,1215.0,12.18972033]
[1672646423167,4.94414,1215.1,1215.0,3.24566394]
[1672646423378,4.94414,1215.1,1215.0,3.18175848]
[1672646423915,4.94414,1215.1,1215.0,7.18175848]
[1672646424126,4.94414,1215.1,1215.0,7.24566394]
[1672646427958,4.94414,1215.1,1215.0,7.24291078]
[1672646439774,4.94614,1215.1,1215.0,7.24091078]
[1672646439984,4.94414,1215.1,1215.0,7.24291078]
[1672646440721,4.94414,1215.1,1215.0,3.24291078]
[1672646440933,4.94414,1215.1,1215.0,3.17900532]
[1672646441250,4.94414,1215.1,1215.0,7.17900532]
[1672646441486,4.94414,1215.1,1215.0,7.24291078]
[1672646442038,4.94414,1215.1,1215.0,3.24291078]
[1672646442194,4.94414,1215.1,1215.0,7.17900532]
[1672646442543,4.94414,1215.1,1215.0,3.24291078]
[1672646442757,4.94414,1215.1,1215.0,7.17900532]
[1672646443066,4.94414,1215.1,1215.0,7.24291078]
[1672646446291,4.94614,1215.1,1215.0,10.39939186]
[1672646446508,4.94414,1215.1,1215.0,10.40139186]
[1672646447215,4.94414,1215.1,1215.0,20.40139186]
[1672646447431,4.94414,1215.1,1215.0,26.175253]
[1672646447679,4.94414,1215.1,1215.0,26.405253]
[1672646448010,4.94414,1215.1,1215.0,26.65763682]
[1672646449180,4.94414,1215.1,1215.0,28.28263682]
[1672646450500,4.94414,1215.1,1215.0,28.028253]
[1672646450501,4.94614,1215.1,1215.0,28.028253]
[1672646450691,4.94414,1215.1,1215.0,28.030253]
[1672646451739,4.94414,1215.1,1215.0,28.02752899]
[1672646453162,4.94414,1215.1,1215.0,22.02366785]
[1672646456716,4.94614,1215.1,1215.0,22.02166785]
[1672646456970,4.94414,1215.1,1215.0,22.02366785]
[1672646457756,4.94414,1215.1,1215.0,26.17252899]
[1672646458019,4.94414,1215.1,1215.0,26.40252899]
[1672646458236,4.94414,1215.1,1215.0,22.25366785]
[1672646458451,4.94414,1215.1,1215.0,22.02366785]
[1672646463027,4.94414,1215.1,1215.0,13.24018677]
[1672646463258,4.94414,1215.1,1215.0,17.24018677]
[1672646464934,4.94414,1215.1,1215.0,13.24018677]
[1672646465139,4.94414,1215.1,1215.0,17.24018677]
[1672646466022,4.94414,1215.1,1215.0,13.24018677]
[1672646466336,4.94414,1215.1,1215.0,17.24018677]
[1672646468926,4.94414,1215.1,1215.0,13.24018677]
[1672646469134,4.94414,1215.1,1215.0,17.24018677]
[1672646469763,4.94414,1215.1,1215.0,13.24018677]
[1672646471532,5.02414,1215.1,1215.0,13.24018677]
[1672646471743,5.09014,1215.1,1215.0,13.24018677]
[1672646471960,5.660964,1215.1,1215.0,13.24018677]
[1672646472176,5.660964,1215.1,1215.0,13.23811126]
[1672646479592,11.43482514,1215.1,1215.0,13.23811126]
[1672646479808,15.05292514,1215.1,1215.0,13.23811126]
[1672646483381,15.05046639,1215.1,1215.0,13.23811126]
[1672646485902,10.90160525,1215.1,1215.0,13.23811126]
[1672646486122,9.27660525,1215.1,1215.0,13.23811126]
[1672646486306,8.08768125,1215.1,1215.0,13.23811126]
[1672646486483,8.70578125,1215.1,1215.0,13.23811126]
[1672646490531,8.08768125,1215.1,1215.0,13.23811126]
[1672646491058,12.23654239,1215.1,1215.0,13.23811126]
[1672646491210,14.47564239,1215.1,1215.0,13.23811126]
[1672646491419,16.59108339,1215.1,1215.0,13.23811126]
[1672646496875,15.97298339,1215.1,1215.0,13.23811126]
[1672646497613,15.89298339,1215.1,1215.0,13.15811126]
[1672646498207,8.00768125,1215.1,1215.0,13.15811126]
[1672646498456,5.00768125,1215.1,1215.0,13.15811126]
[1672646502867,8.03828947,1215.1,1215.0,13.15811126]
[1672646503656,5.00768125,1215.1,1215.0,13.15811126]
[1672646509123,6.64828947,1215.1,1215.0,13.15811126]
[1672646509377,15.38628956,1215.1,1215.0,13.15811126]
[1672646509600,15.38628956,1215.1,1215.0,13.15611126]
[1672646509852,15.38628956,1215.1,1215.0,13.15811126]
[1672646511511,16.00438956,1215.1,1215.0,13.15811126]
[1672646511842,19.50438956,1215.1,1215.0,13.15811126]
[1672646512015,16.00438956,1215.1,1215.0,13.15811126]
[1672646512454,20.00438956,1215.1,1215.0,13.15811126]
[1672646513007,16.00438956,1215.1,1215.0,13.15811126]
[1672646516408,16.00438956,1215.1,1215.0,12.15077666]
[1672646518139,11.06270831,1215.1,1215.0,12.15077666]
[1672646519248,16.06270831,1215.1,1215.0,12.15077666]
[1672646520098,16.06270831,1215.1,1215.0,12.14811639]
[1672646520513,15.44460831,1215.1,1215.0,12.14811639]
[1672646525304,10.44460831,1215.1,1215.0,12.14811639]
[1672646526081,15.44460831,1215.1,1215.0,12.14811639]
[1672646532072,10.44460831,1215.1,1215.0,12.14811639]
[1672646533207,15.44460831,1215.1,1215.0,12.14811639]
[1672646540902,12.21486114,1215.1,1215.0,12.14811639]
[1672646541929,8.066,1215.1,1215.0,12.14446461]
[1672646547685,8.066,1215.1,1215.0,12.14646461]
[1672646553202,12.83296114,1215.1,1215.0,12.14646461]
[1672646556214,8.6841,1215.1,1215.0,12.14646461]
[1672646556431,8.066,1215.1,1215.0,12.14646461]
[1672646559937,7.7832945,1215.2,1215.1,0.16]
[1672646560145,11.99815564,1215.2,1215.1,0.16]
[1672646561252,18.99815564,1215.2,1215.1,0.16]
[1672646561711,14.99815564,1215.2,1215.1,0.16]
[1672646561876,19.99815564,1215.2,1215.1,0.16]
[1672646562623,21.61615564,1215.2,1215.1,0.16]
[1672646566086,30.79963997,1215.2,1215.1,0.16]
[1672646566617,21.61615564,1215.2,1215.1,0.16]
[1672646567331,30.79963997,1215.2,1215.1,0.16]
[1672646567554,31.02963997,1215.2,1215.1,0.16]
[1672646568182,32.65463997,1215.2,1215.1,0.16]
[1672646570358,23.47115564,1215.2,1215.1,0.16]
[1672646572450,23.24115564,1215.2,1215.1,0.11]
[1672646584665,32.42463997,1215.2,1215.1,0.11]
[1672646585319,23.24115564,1215.2,1215.1,0.11]
[1672646588874,21.62315564,1215.2,1215.1,0.11]
[1672646590961,19.99815564,1215.2,1215.1,0.11]
[1672646592027,19.38005564,1215.2,1215.1,0.11]
[1672646592733,19.38005564,1215.2,1215.1,0.10644848]
[1672646594385,19.99815564,1215.2,1215.1,0.10644848]
[1672646598672,15.2311945,1215.2,1215.1,0.10644848]
[1672646599389,15.2311945,1215.2,1215.1,3.86709238]
[1672646600580,19.38005564,1215.2,1215.1,3.86709238]
[1672646600756,19.99815564,1215.2,1215.1,3.86709238]
[1672646603047,5.2311945,1215.2,1215.1,3.86709238]
[1672646603293,5.2311945,1215.2,1215.1,12.77754558]
[1672646603483,5.2311945,1215.2,1215.1,11.81416437]
[1672646606630,5.2311945,1215.2,1215.1,3.92668579]
[1672646606841,5.2311945,1215.2,1215.1,7.86709238]
[1672646607066,5.2311945,1215.2,1215.1,7.92668579]
[1672646608765,5.2311945,1215.2,1215.1,3.92668579]
[1672646609130,5.2311945,1215.2,1215.1,3.86709238]
[1672646609281,8.2311945,1215.2,1215.1,3.86709238]
[1672646615962,8.2311945,1215.2,1215.1,3.86323826]
[1672646616739,12.38005564,1215.2,1215.1,3.86323826]
[1672646619488,12.21486114,1215.2,1215.1,3.86323826]
[1672646623209,12.83296114,1215.2,1215.1,3.86323826]
[1672646623376,12.21486114,1215.2,1215.1,3.86323826]
[1672646624484,7.21486114,1215.2,1215.1,3.86323826]
[1672646625305,12.21486114,1215.2,1215.1,3.86323826]
[1672646627475,12.44486114,1215.2,1215.1,3.86323826]
[1672646630220,17.38786114,1215.2,1215.1,3.86323826]
[1672646630818,21.38786114,1215.2,1215.1,3.86323826]
[1672646631022,22.00596114,1215.2,1215.1,3.86323826]
[1672646632605,22.00596114,1215.2,1215.0,10.05959341]
[1672646632606,8.943,1215.1,1215.0,10.05959341]
[1672646632854,49.18954547,1215.1,1215.0,10.05959341]
[1672646633474,40.00606114,1215.1,1215.0,10.05959341]
[1672646636545,40.03666936,1215.1,1215.0,10.05959341]
[1672646637229,36.03666936,1215.1,1215.0,10.05959341]
[1672646641068,36.00606114,1215.1,1215.0,10.05959341]
[1672646641384,24.15786114,1215.1,1215.0,10.05959341]
[1672646642851,24.04828075,1215.1,1215.0,10.05959341]
[1672646645750,24.04828075,1215.1,1215.0,10.05759341]
[1672646645917,24.04828075,1215.1,1215.0,10.05959341]
[1672646646563,17.04828075,1215.1,1215.0,10.05959341]
[1672646647397,24.04828075,1215.1,1215.0,10.05959341]
[1672646647545,26.91797965,1215.1,1215.0,10.05959341]
[1672646651335,24.04828075,1215.1,1215.0,10.05959341]
[1672646652625,19.21486114,1215.1,1215.0,10.05959341]
[1672646653012,5.066,1215.1,1215.0,10.05959341]
[1672646657162,9.21486114,1215.1,1215.0,10.05959341]
[1672646661955,5.066,1215.1,1215.0,10.05959341]
[1672646662211,5.066,1215.1,1215.0,13.84730275]
[1672646663418,5.066,1215.1,1215.0,10.05959341]
[1672646665634,5.066,1215.1,1215.0,10.05569748]
[1672646675221,5.066,1215.1,1215.0,16.69207332]
[1672646675418,5.066,1215.1,1215.0,11.68169748]
[1672646675632,5.066,1215.1,1215.0,15.68169748]
[1672646676061,5.066,1215.1,1215.0,20.0320232]
[1672646676285,5.066,1215.1,1215.0,30.81726018]
[1672646676663,5.066,1215.1,1215.0,32.44326018]
[1672646676887,0.1651945,1215.3,1215.0,32.44326018]
[1672646677116,0.01,1215.2,1215.1,23.26253734]
[1672646677327,0.01,1215.2,1215.1,31.7667868]
[1672646677550,0.0100945,1215.3,1215.1,32.3849868]
[1672646677766,7.056,1215.7,1215.2,3.252]
[1672646677989,7.056,1215.7,1215.4,1.626]
[1672646678159,7.056,1215.7,1215.4,3.20636]
[1672646678360,11.056,1215.7,1215.4,3.20636]
[1672646678556,4.056,1215.7,1215.4,3.20636]
[1672646678761,4.0,1215.7,1215.4,17.38396]
[1672646678972,7.6838,1215.8,1215.5,4.0]
[1672646679199,7.6738,1215.8,1215.5,20.32195534]
[1672646679450,7.6738,1215.8,1215.5,20.38154875]
[1672646679817,11.6738,1215.8,1215.5,20.38154875]
[1672646680138,5.0,1215.6,1215.5,20.38154875]
[1672646680351,5.056,1215.6,1215.5,20.38154875]
[1672646680671,5.056,1215.6,1215.5,20.39695116]
[1672646681652,5.056,1215.6,1215.5,16.39695116]
[1672646685287,5.056,1215.6,1215.5,14.25259582]
[1672646685960,5.056,1215.6,1215.5,19.9201089]
[1672646686289,0.056,1215.6,1215.5,26.9201089]
[1672646686447,0.01,1215.7,1215.5,26.9201089]
[1672646686448,5.0,1215.7,1215.5,36.9601089]
[1672646686654,5.056,1215.7,1215.6,5.66161525]
[1672646686868,5.056,1215.7,1215.6,5.72120866]
[1672646687109,0.056,1215.7,1215.6,6.29759341]
[1672646687339,24.5003,1216.3,1215.6,28.59865455]
[1672646687527,4.14886114,1216.2,1215.8,1.626]
[1672646687736,5.0,1215.9,1215.8,1.626]
[1672646687959,5.056,1215.9,1215.8,1.626]
[1672646688496,5.006,1215.9,1215.8,5.626]
[1672646688708,5.006,1215.9,1215.8,7.31159341]
[1672646688876,5.006,1215.9,1215.8,9.29613338]
[1672646690218,0.056,1215.9,1215.8,9.29613338]
[1672646690436,5.0,1216.0,1215.8,9.29613338]
[1672646690702,5.056,1216.0,1215.9,1.611]
[1672646692887,5.056,1216.0,1215.8,7.67013338]
[1672646693489,5.056,1216.0,1215.8,6.04413338]
[1672646697215,5.056,1216.0,1215.8,2.04413338]
[1672646697425,5.056,1216.0,1215.8,1.98453997]
[1672646697956,5.056,1216.0,1215.8,5.98453997]
[1672646698104,5.056,1216.0,1215.8,6.04413338]
[1672646701682,5.056,1216.0,1215.8,2.04413338]
[1672646701890,5.056,1216.0,1215.8,1.98453997]
[1672646702565,5.056,1216.0,1215.8,5.98453997]
[1672646702774,5.056,1216.0,1215.8,6.04413338]
[1672646702934,5.056,1216.0,1215.8,2.04413338]
[1672646703147,5.056,1216.0,1215.8,1.98453997]
[1672646703358,5.056,1216.0,1215.8,5.98453997]
[1672646703639,5.056,1216.0,1215.8,2.04413338]
[1672646703782,5.056,1216.0,1215.8,1.98453997]
[1672646704314,5.056,1216.0,1215.8,5.98453997]
[1672646704519,5.056,1216.0,1215.8,6.04413338]
[1672646704734,5.056,1216.0,1215.8,2.04413338]
[1672646704985,5.056,1216.0,1215.8,5.98453997]
[1672646705200,5.056,1216.0,1215.8,6.04413338]
[1672646705671,5.056,1216.0,1215.8,2.04413338]
[1672646705887,5.056,1216.0,1215.8,1.98453997]
[1672646706096,5.056,1216.0,1215.8,5.98453997]
[1672646706336,5.056,1216.0,1215.8,6.04413338]
[1672646706541,5.05361143,1216.0,1215.8,6.04413338]
[1672646707539,5.05361143,1216.0,1215.8,0.05959341]
[1672646707754,5.05361143,1216.0,1215.7,10.09959341]
[1672646708134,5.05361143,1216.0,1215.8,4.0]
[1672646718533,5.05361143,1216.0,1215.8,18.7533]
[1672646718750,5.05361143,1216.0,1215.8,18.81289341]
[1672646719054,5.05361143,1216.0,1215.8,27.03425895]
[1672646719323,5.05361143,1216.0,1215.9,6.5590762]
[1672646719538,5.05361143,1216.0,1215.9,6.61866961]
[1672646719839,5.05361143,1216.0,1215.9,1.68259341]
[1672646719995,5.05361143,1216.0,1215.9,1.623]
[1672646720207,5.05361143,1216.0,1215.9,4.57180439]
[1672646720984,5.05361143,1216.0,1215.9,4.57080439]
[1672646721911,5.05361143,1216.0,1215.9,2.94880439]
[1672646725841,5.05361143,1216.0,1215.9,7.09766553]
[1672646726163,5.05361143,1216.0,1215.9,7.15725894]
[1672646727745,5.05361143,1216.0,1215.9,3.0083978]
[1672646727958,5.05361143,1216.0,1215.9,2.94880439]
[1672646728265,5.05361143,1216.0,1215.9,7.09766553]
[1672646728476,5.05361143,1216.0,1215.9,7.15725894]
[1672646729209,5.05361143,1216.0,1215.9,3.0083978]
[1672646729429,5.05361143,1216.0,1215.9,2.94880439]
[1672646731631,5.05361143,1216.0,1215.9,2.94541929]
[1672646734218,5.05361143,1216.0,1215.9,7.09428043]
[1672646734458,5.05361143,1216.0,1215.9,7.15387384]
[1672646735630,0.056,1216.0,1215.9,7.15387384]
[1672646735778,5.0,1216.1,1215.9,21.55247384]
[1672646735991,5.056,1216.1,1215.9,21.55247384]
[1672646736306,5.056,1216.1,1216.0,4.0]
[1672646736616,5.056,1216.1,1216.0,6.55524738]
[1672646736834,5.056,1216.1,1216.0,6.61484079]
[1672646737248,5.056,1216.1,1216.0,0.05959341]
[1672646737499,5.056,1216.1,1215.9,27.1303127]
[1672646738094,5.056,1216.1,1216.0,4.0]
[1672646739414,5.056,1216.1,1215.9,27.1303127]
[1672646741094,5.056,1216.1,1216.0,4.0]
[1672646741288,5.056,1216.1,1216.0,7.11303127]
[1672646741494,5.056,1216.1,1216.0,7.17262468]
[1672646743335,5.056,1216.1,1216.0,11.32148582]
[1672646744109,5.056,1216.1,1216.0,7.32148582]
[1672646744372,5.056,1216.1,1216.0,3.17262468]
[1672646744696,5.056,1216.1,1216.0,7.11303127]
[1672646744904,5.056,1216.1,1216.0,3.17262468]
[1672646745060,5.056,1216.1,1216.0,3.11303127]
[1672646745518,5.056,1216.1,1216.0,5.8437309]
[1672646745731,5.056,1216.1,1216.0,5.90332431]
[1672646746069,5.056,1216.1,1216.0,9.90332431]
[1672646746755,5.056,1216.1,1216.0,5.90332431]
[1672646747690,5.056,1216.1,1216.0,9.90332431]
[1672646748585,5.056,1216.1,1216.0,5.90132431]
[1672646748804,5.056,1216.1,1216.0,5.90332431]
[1672646749848,5.056,1216.1,1216.0,9.90332431]
[1672646751561,5.056,1216.1,1216.0,5.90332431]
[1672646751735,5.056,1216.1,1216.0,9.90332431]
[1672646753630,5.056,1216.1,1216.0,9.89935591]
[1672646754838,5.056,1216.1,1216.0,12.89935591]
[1672646757669,5.056,1216.1,1216.0,8.89935591]
[1672646757879,5.056,1216.1,1216.0,12.89935591]
[1672646758619,5.056,1216.1,1216.0,5.79029304]
[1672646759313,5.056,1216.1,1216.0,9.79029304]
[1672646759521,5.056,1216.1,1216.0,5.79029304]
[1672646759849,5.056,1216.1,1216.0,9.79029304]
[1672646760231,5.056,1216.1,1216.0,5.79029304]
[1672646763789,5.056,1216.1,1216.0,2.79029304]
[1672646763790,7.1756,1216.1,1216.0,2.79029304]
[1672646764003,7.1756,1216.1,1216.0,2.73069963]
[1672646770318,6.669,1216.1,1216.0,2.73069963]
[1672646770531,5.056,1216.1,1216.0,2.73069963]
[1672646775736,5.056,1216.1,1216.0,2.72694963]
[1672646778094,0.056,1216.1,1216.0,2.72694963]
[1672646778305,1.65260822,1216.2,1216.0,2.72694963]
[1672646778519,0.03060822,1216.2,1216.0,2.72694963]
[1672646779167,5.0,1216.1,1216.0,2.72694963]
[1672646779524,5.056,1216.1,1216.0,2.72694963]
[1672646785200,0.952,1216.1,1216.0,2.72694963]
[1672646785415,6.5136,1216.1,1216.0,2.72694963]
[1672646785564,6.5696,1216.1,1216.0,2.72694963]
[1672646786560,5.6736,1216.1,1216.0,2.72694963]
[1672646789978,5.056,1216.1,1216.0,2.72694963]
[1672646799955,5.056,1216.1,1216.0,2.72325251]
[1672646803788,0.056,1216.1,1216.0,2.72325251]
[1672646803989,0.6276,1216.2,1216.0,2.72325251]
[1672646803990,0.6176,1216.2,1216.0,2.72325251]
[1672646804200,5.0,1216.1,1216.0,2.72325251]